[Event "Reykjavik Open 2022"]
[Site "Reykjavik"]
[Date "2022.04.08"]
[Round "4.47"]
[White "Larkin, Benjamin"]
[Black "Villiers, Thomas"]
[Result "0-1"]
[ECO "B80"]
[WhiteElo "1784"]
[BlackElo "2202"]
[Annotator "RC"]
[PlyCount "54"]
[EventDate "2022.04.06"]
[EventCountry "ISL"]
[SourceTitle "playchess.com"]
[Source "ChessBase"]
[SourceQuality "1"]
[TimeControl "40/5400+30:1800+30"]

1. e4 {[%emt 0:00:01]} c5 {[%emt 0:00:07]} 2. Nf3 {[%emt 0:00:05]} d6 {[%emt 0:00:07]} 3. d4 {[%emt 0:00:03]} cxd4 {[%emt 0:00:08]} 4. Nxd4 {[%emt 0:00:04]} Nf6 {[%emt 0:00:06]} 5. Nc3 {[%emt 0:00:04]} a6 {[%emt 0:00:06]} 6. f3 {[%emt 0:00:04]} e6 {[%emt 0:00:44]} 7. Be3 {[%emt 0:00:11]} Be7 {[%emt 0:00:25]} 8. Qd2 {[%emt 0:00:36]} b5 {[%emt 0:01:41]} 9. g4 {[%emt 0:00:27]} Bb7 {[%emt 0:00:34]} 10. O-O-O {[%emt 0:01:06]} Nc6 {[%emt 0:00:23]} 11. Kb1 {[%emt 0:05:03]} Nd7 {[%emt 0:07:47]} 12. Nxc6 {[%emt 0:04:28]} Bxc6 {[%emt 0:00:06]} 13. Bf4 {[%emt 0:00:33]} Ne5 {[%emt 0:00:39]} 14. Bxe5 {[%emt 0:00:47]} dxe5 {[%emt 0:00:01]} 15. Qxd8+ {[%emt 0:00:10]} Bxd8 {[%emt 0:04:28]} 16. Ne2 {[%emt 0:07:11]} Ke7 {[%emt 0:03:42]} 17. Ng3 {[%emt 0:02:52]} Bb6 {[%emt 0:00:15]} 18. c4 {[%emt 0:04:48]} Rhd8 {[%emt 0:12:15]} 19. Rxd8 {[%emt 0:08:17]} Rxd8 {[%emt 0:00:04]} 20. cxb5 {[%emt 0:04:43]} axb5 {[%emt 0:00:11]} 21. Be2 {[%emt 0:00:18]} g6 {[%emt 0:05:57]} 22. Rc1 {[%emt 0:04:19]} Be8 {[%emt 0:03:15]} 23. Rc3 {[%emt 0:03:46]} Bg1 {[%emt 0:09:02]} 24. h3 {[%emt 0:03:57]} Kf6 {[%emt 0:00:09]} 25. Rb3 {[%emt 0:01:09]} Rb8 {[%emt 0:01:19]} 26. Nf1 {[%emt 0:01:08]} Kg5 {[%emt 0:00:42]} 27. Nd2 {[%emt 0:00:13]} Bc5 {[%emt 0:10:26]} 0-1

[Event "Reykjavik Open 2022"]
[Site "Reykjavik"]
[Date "2022.04.08"]
[Round "4.48"]
[White "Roe, Simon J"]
[Black "Jonsson, Olafur Gisli"]
[Result "1-0"]
[ECO "E09"]
[WhiteElo "2211"]
[BlackElo "1821"]
[Annotator "RC"]
[PlyCount "107"]
[EventDate "2022.04.06"]
[EventCountry "ISL"]
[SourceTitle "playchess.com"]
[Source "ChessBase"]
[SourceQuality "1"]
[TimeControl "40/5400+30:1800+30"]

1. d4 {[%emt 0:00:05]} Nf6 {[%emt 0:00:12]} 2. Nf3 {[%emt 0:00:14]} e6 {[%emt 0:00:27]} 3. c4 {[%emt 0:01:45]} d5 {[%emt 0:00:21]} 4. g3 {[%emt 0:01:53]} Be7 {[%emt 0:00:36]} 5. Bg2 {[%emt 0:00:08]} O-O {[%emt 0:00:19]} 6. O-O {[%emt 0:01:50]} c6 {[%emt 0:00:43]} 7. Qc2 {[%emt 0:03:47]} Nbd7 {[%emt 0:01:49]} 8. Nbd2 {[%emt 0:01:21]} b6 {[%emt 0:00:47]} 9. Rd1 {[%emt 0:05:12]} Bb7 {[%emt 0:01:06]} 10. e4 {[%emt 0:03:05]} dxe4 {[%emt 0:07:32]} 11. Nxe4 {[%emt 0:00:36]} Nxe4 {[%emt 0:06:05]} 12. Qxe4 {[%emt 0:00:06]} Nf6 {[%emt 0:01:58]} 13. Qc2 {[%emt 0:00:11]} Qc7 {[%emt 0:07:26]} 14. Bf4 {[%emt 0:09:06]} Bd6 {[%emt 0:01:17]} 15. Bxd6 {[%emt 0:00:51]} Qxd6 {[%emt 0:00:25]} 16. c5 {[%emt 0:08:07]} Qc7 {[%emt 0:03:58]} 17. Rac1 {[%emt 0:11:58]} b5 {[%emt 0:04:20]} 18. Ne5 {[%emt 0:02:14]} Rad8 {[%emt 0:03:50]} 19. a4 {[%emt 0:05:04]} a6 {[%emt 0:00:45]} 20. Ra1 {[%emt 0:00:10]} Ra8 {[%emt 0:01:40]} 21. Qe2 {[%emt 0:04:46]} Rfe8 {[%emt 0:05:23]} 22. h4 {[%emt 0:00:31]} Nd5 {[%emt 0:01:32]} 23. Be4 {[%emt 0:03:17]} Rf8 {[%emt 0:11:34]} 24. Bc2 {[%emt 0:04:53]} f5 {[%emt 0:04:31]} 25. f4 {[%emt 0:16:09]} g6 {[%emt 0:02:26]} 26. Bb3 {[%emt 0:00:54]} Rfe8 {[%emt 0:11:44]} 27. Bxd5 {[%emt 0:04:50]} exd5 {[%emt 0:01:42]} 28. Qd2 {[%emt 0:01:52]} Kg7 {[%emt 0:01:19]} 29. Ra3 {[%emt 0:01:20]} a5 {[%emt 0:07:30]} 30. axb5 {[%emt 0:00:42]} cxb5 {[%emt 0:00:06]} 31. c6 {[%emt 0:01:05]} Bc8 {[%emt 0:02:43]} 32. Rc3 {[%emt 0:01:18]} b4 {[%emt 0:02:38]} 33. Rc5 {[%emt 0:00:08]} Be6 {[%emt 0:00:10]} 34. Ra1 {[%emt 0:00:30]} Reb8 {[%emt 0:00:41]} 35. Ra4 {[%emt 0:03:42]} Kh6 {[%emt 0:01:36]} 36. b3 {[%emt 0:00:19]} Kg7 {[%emt 0:00:07]} 37. Qa2 {[%emt 0:00:16]} Kh6 {[%emt 0:05:16]} 38. Raxa5 {[%emt 0:01:36]} Rxa5 {[%emt 0:00:15]} 39. Qxa5 {[%emt 0:00:07]} Qc8 {[%emt 0:00:15]} 40. Qa7 {[%emt 0:00:00]} Ra8 {[%emt 0:00:00]} 41. Qb7 {[%emt 0:05:34]} Ra3 {[%emt 0:06:04]} 42. Qxc8 {[%emt 0:16:43]} Bxc8 {[%emt 0:00:09]} 43. Rxd5 {[%emt 0:00:16]} Rxb3 {[%emt 0:00:27]} 44. Kf2 {[%emt 0:00:15]} Rc3 {[%emt 0:03:54]} 45. Rb5 {[%emt 0:04:02]} b3 {[%emt 0:00:44]} 46. d5 {[%emt 0:00:41]} Ba6 {[%emt 0:03:23]} 47. Rb6 {[%emt 0:00:26]} Rc2+ {[%emt 0:00:38]} 48. Ke3 {[%emt 0:00:40]} b2 {[%emt 0:00:12]} 49. d6 {[%emt 0:00:31]} Re2+ {[%emt 0:05:12]} 50. Kf3 {[%emt 0:03:33]} Rd2 {[%emt 0:04:27]} 51. d7 {[%emt 0:00:46]} Rd5 {[%emt 0:01:42]} 52. Nf7+ {[%emt 0:02:49]} Kg7 {[%emt 0:01:23]} 53. d8=Q {[%emt 0:00:08]} Bb5 {[%emt 0:02:57]} 54. Qh8+ {[%emt 0:01:49]} 1-0

[Event "Reykjavik Open 2022"]
[Site "Reykjavik"]
[Date "2022.04.08"]
[Round "4.49"]
[White "Anand, Vignesh"]
[Black "Jaksland, Tim"]
[Result "1/2-1/2"]
[ECO "A19"]
[WhiteElo "1882"]
[BlackElo "2201"]
[Annotator "RC"]
[PlyCount "89"]
[EventDate "2022.04.06"]
[EventCountry "ISL"]
[SourceTitle "playchess.com"]
[Source "ChessBase"]
[SourceQuality "1"]
[TimeControl "40/5400+30:1800+30"]

1. c4 {[%emt 0:00:03]} Nf6 {[%emt 0:00:29]} 2. Nc3 {[%emt 0:00:10]} e6 {[%emt 0:00:55]} 3. e4 {[%emt 0:00:25]} c5 {[%emt 0:00:50]} 4. e5 {[%emt 0:00:07]} Ng8 {[%emt 0:00:16]} 5. Nf3 {[%emt 0:00:10]} Nc6 {[%emt 0:00:16]} 6. d4 {[%emt 0:00:07]} cxd4 {[%emt 0:01:38]} 7. Nxd4 {[%emt 0:00:09]} Nxe5 {[%emt 0:03:19]} 8. Ndb5 {[%emt 0:00:06]} a6 {[%emt 0:04:34]} 9. Nd6+ {[%emt 0:00:50]} Bxd6 {[%emt 0:00:16]} 10. Qxd6 {[%emt 0:00:07]} f6 {[%emt 0:00:23]} 11. Be3 {[%emt 0:01:17]} Ne7 {[%emt 0:02:28]} 12. Bb6 {[%emt 0:00:50]} Nf5 {[%emt 0:00:38]} 13. Qb4 {[%emt 0:00:56]} Nc6 {[%emt 0:04:46]} 14. Qc5 {[%emt 0:05:23]} d6 {[%emt 0:06:12]} 15. Bxd8 {[%emt 0:02:11]} dxc5 {[%emt 0:00:06]} 16. Bb6 {[%emt 0:00:16]} Ne5 {[%emt 0:10:51]} 17. Bxc5 {[%emt 0:03:46]} g5 {[%emt 0:08:51]} 18. Be2 {[%emt 0:10:59]} h5 {[%emt 0:00:23]} 19. Ne4 {[%emt 0:02:35]} Kf7 {[%emt 0:08:15]} 20. O-O-O {[%emt 0:04:16]} b5 {[%emt 0:16:59]} 21. cxb5 {[%emt 0:16:10]} axb5 {[%emt 0:00:32]} 22. Nd6+ {[%emt 0:07:10]} Nxd6 {[%emt 0:03:04]} 23. Bxd6 {[%emt 0:01:45]} Nc4 {[%emt 0:02:27]} 24. Kb1 {[%emt 0:11:43]} Bb7 {[%emt 0:07:25]} 25. Bc5 {[%emt 0:05:05]} Bd5 {[%emt 0:11:03]} 26. Rhg1 {[%emt 0:06:29]} h4 {[%emt 0:02:16]} 27. b3 {[%emt 0:01:57]} Ne5 {[%emt 0:00:28]} 28. Bd6 {[%emt 0:03:10]} Be4+ {[%emt 0:02:01]} 29. Kb2 {[%emt 0:00:20]} Rhc8 {[%emt 0:00:38]} 30. Rd2 {[%emt 0:01:32]} Bc6 {[%emt 0:02:31]} 31. Bxe5 {[%emt 0:01:39]} fxe5 {[%emt 0:00:02]} 32. a3 {[%emt 0:02:36]} Kf6 {[%emt 0:00:28]} 33. Rc1 {[%emt 0:01:16]} b4 {[%emt 0:01:02]} 34. axb4 {[%emt 0:02:57]} Bxg2 {[%emt 0:00:05]} 35. Rxc8 {[%emt 0:00:56]} Rxc8 {[%emt 0:00:01]} 36. b5 {[%emt 0:00:18]} Bd5 {[%emt 0:00:56]} 37. Rc2 {[%emt 0:01:25]} Rb8 {[%emt 0:00:35]} 38. Rc7 {[%emt 0:01:10]} e4 {[%emt 0:00:51]} 39. Bc4 {[%emt 0:01:00]} Ke5 {[%emt 0:00:14]} 40. Kc3 {[%emt 0:00:00]} h3 {[%emt 0:00:00]} 41. Rh7 {[%emt 0:09:53]} g4 {[%emt 0:07:40]} 42. Rg7 {[%emt 0:17:18]} Rf8 {[%emt 0:00:26]} 43. Rxg4 {[%emt 0:00:09]} Rxf2 {[%emt 0:00:02]} 44. b6 {[%emt 0:00:07]} Kd6 {[%emt 0:00:06]} 45. Rg7 {[%emt 0:00:23]} 1/2-1/2

[Event "Reykjavik Open 2022"]
[Site "Reykjavik"]
[Date "2022.04.08"]
[Round "4.50"]
[White "Popvasilev, Kaloyan"]
[Black "Herrera, Diego"]
[Result "1-0"]
[ECO "B71"]
[WhiteElo "2191"]
[BlackElo "1832"]
[Annotator "RC"]
[PlyCount "65"]
[EventDate "2022.04.06"]
[EventCountry "ISL"]
[SourceTitle "playchess.com"]
[Source "ChessBase"]
[SourceQuality "1"]
[TimeControl "40/5400+30:1800+30"]

1. e4 {[%emt 0:00:03]} c5 {[%emt 0:00:02]} 2. Nf3 {[%emt 0:00:06]} d6 {[%emt 0:00:03]} 3. d4 {[%emt 0:00:06]} cxd4 {[%emt 0:00:03]} 4. Nxd4 {[%emt 0:00:06]} Nf6 {[%emt 0:00:04]} 5. Nc3 {[%emt 0:00:12]} g6 {[%emt 0:00:04]} 6. f4 {[%emt 0:00:28]} Nc6 {[%emt 0:00:08]} 7. Nxc6 {[%emt 0:00:49]} bxc6 {[%emt 0:00:12]} 8. e5 {[%emt 0:00:14]} Nd7 {[%emt 0:04:24]} 9. exd6 {[%emt 0:01:03]} exd6 {[%emt 0:00:02]} 10. Be3 {[%emt 0:00:09]} Qe7 {[%emt 0:04:11]} 11. Qd2 {[%emt 1:03:20]} Bg7 {[%emt 0:05:26]} 12. O-O-O {[%emt 0:00:06]} O-O {[%emt 0:01:52]} 13. Bd4 {[%emt 0:02:10]} d5 {[%emt 0:14:46]} 14. Bxg7 {[%emt 0:00:44]} Kxg7 {[%emt 0:00:09]} 15. Be2 {[%emt 0:00:15]} Nf6 {[%emt 0:01:37]} 16. Bf3 {[%emt 0:00:13]} Rb8 {[%emt 0:05:25]} 17. b3 {[%emt 0:02:11]} Qa3+ {[%emt 0:05:33]} 18. Kb1 {[%emt 0:00:04]} Bf5 {[%emt 0:00:57]} 19. Ka1 {[%emt 0:00:05]} a5 {[%emt 0:11:07]} 20. h3 {[%emt 0:08:01]} a4 {[%emt 0:06:10]} 21. Qc1 {[%emt 0:13:09]} Qb4 {[%emt 0:03:29]} 22. Nxa4 {[%emt 0:00:15]} Ra8 {[%emt 0:00:47]} 23. Qb2 {[%emt 0:00:25]} Qxf4 {[%emt 0:12:36]} 24. Rhf1 {[%emt 0:00:54]} Qg3 {[%emt 0:12:49]} 25. Bg4 {[%emt 0:05:04]} Rxa4 {[%emt 0:00:23]} 26. bxa4 {[%emt 0:00:21]} Rb8 {[%emt 0:00:03]} 27. Rf3 {[%emt 0:00:09]} Qd6 {[%emt 0:01:26]} 28. Qc3 {[%emt 0:00:13]} Be4 {[%emt 0:04:22]} 29. Rf2 {[%emt 0:00:04]} h5 {[%emt 0:00:37]} 30. Bf3 {[%emt 0:00:22]} Rb4 {[%emt 0:03:49]} 31. Bxe4 {[%emt 0:01:10]} Rxe4 {[%emt 0:00:03]} 32. Rdf1 {[%emt 0:00:27]} Re6 {[%emt 0:01:29]} 33. Rxf6 {[%emt 0:00:32]} 1-0

[Event "Reykjavik Open 2022"]
[Site "Reykjavik"]
[Date "2022.04.08"]
[Round "4.51"]
[White "Klasinc, Kristjan"]
[Black "Louis, Thibault"]
[Result "0-1"]
[ECO "A05"]
[WhiteElo "1779"]
[BlackElo "2181"]
[Annotator "TA"]
[PlyCount "122"]
[EventDate "2022.04.06"]
[EventCountry "ISL"]
[SourceTitle "playchess.com"]
[Source "ChessBase"]
[SourceQuality "1"]
[TimeControl "40/5400+30:1800+30"]

{[%evp 23,122,0,7,-24,19,15,10,23,25,-61,-66,-70,-50,-140,-129,-273,-151,-157,-143,-160,-156,-369,-358,-349,-217,-225,-225,-233,-236,-233,-227,-252,-193,-309,-305,-459,-441,-468,-476,-594,-578,-580,-564,-662,-394,-617,-595,-546,-170,-149,-170,-161,-179,-168,-162,-149,-103,-103,-103,-103,-103,-108,-108,-94,-59,-62,-59,-66,-59,-59,-59,-59,-40,-59,-40,-53,-45,-95,-89,-227,-182,-456,-449,-433,-392,-380,-93,-93,-75,-104,-104,-130,-126,-177,-166,-29973,-529,-1059,-910,-29992,-29992]} 1. e4 {[%emt 0:00:51]} e6 {[%emt 0:00:47]} 2. d3 {[%emt 0:00:13]} d5 {[%emt 0:00:34]} 3. Nd2 {[%emt 0:00:40]} Nf6 {[%emt 0:00:12]} 4. Ngf3 {[%emt 0:00:30]} c5 {[%emt 0:00:21]} 5. g3 {[%emt 0:00:13]} g6 {[%emt 0:00:11]} 6. Bg2 {[%emt 0:00:05]} Bg7 {[%emt 0:00:04]} 7. O-O {[%emt 0:00:29]} O-O {[%emt 0:00:08]} 8. Re1 {[%emt 0:00:03]} Nc6 {[%emt 0:00:56]} 9. c3 {[%emt 0:02:35]} e5 {[%emt 0:10:51]} 10. exd5 {[%emt 0:01:25]} Nxd5 {[%emt 0:00:12]} 11. Nc4 {[%emt 0:00:56]} Re8 {[%emt 0:03:41]} 12. a4 {[%emt 0:02:13]} h6 {[%emt 0:01:45]} 13. Qe2 {[%emt 0:08:55] [#] A05: Réti Opening: 1 Nf3 Nf6.} g5 $146 {[%emt 0:09:22]} ({Predecessor:} 13... Rb8 14. a5 Re7 15. Nfd2 Be6 16. Ne4 b6 17. axb6 axb6 18. Ra6 Qc8 19. Ra1 Qc7 {0-1 (43) Neborak,Y (2330)-Kazantsev,R (2427) ICCF email 2017}) 14. Nfd2 {[%emt 0:05:16]} f5 {[%emt 0:03:30] Against Ne4} 15. Nb3 {[%emt 0:08:57] The position is equal.} b6 {[%emt 0:05:03]} 16. Qf3 {[%emt 0:06:06]} (16. a5 $11 Rb8 17. f4) 16... Be6 $15 {[%emt 0:01:51]} 17. Qd1 {[%emt 0:10:48]} Qd7 {[%emt 0:05:16]} 18. Qc2 {[%emt 0:13:27]} ({White should try} 18. a5 $15 Rad8 19. axb6 axb6 20. Qe2) 18... Rad8 {[%emt 0:05:13][%cal Od5b4] And now ...Ndb4! would win.} 19. Ne3 {[%emt 0:04:11] [#]} (19. Bf1 $17) 19... f4 {[%emt 0:11:27]} (19... Ndb4 $1 $19 {[%mdl 512]} 20. cxb4 Nxb4) 20. Nxd5 $17 {[%emt 0:01:12]} Bxd5 {[%emt 0:00:06]} 21. f3 {[%emt 0:04:45]} Bf7 {[%emt 0:01:05]} 22. Rd1 $2 {[%emt 0:04:36]} (22. Nd2 $17) 22... c4 $19 {[%emt 0:06:22]} 23. Nd2 {[%emt 0:01:42]} Qxd3 {[%emt 0:00:21]} 24. Qxd3 {[%emt 0:01:02]} Rxd3 {[%emt 0:00:09]} 25. Re1 {[%emt 0:01:26]} Na5 {[%emt 0:06:08]} 26. Bf1 {[%emt 0:02:00]} Rdd8 {[%emt 0:02:30]} 27. Kf2 {[%emt 0:02:36]} Re7 {[%emt 0:01:01]} 28. gxf4 {[%emt 0:01:02]} (28. Ne4 {was worth a try.}) 28... gxf4 {[%emt 0:00:07]} 29. Bh3 {[%emt 0:00:41]} (29. Ne4 {is a better defense.}) 29... Bf6 {[%emt 0:05:59]} 30. Rg1+ {[%emt 0:01:14]} Kh8 {[%emt 0:00:07]} 31. Ne4 {[%emt 0:00:39]} Bh4+ {[%emt 0:00:06]} 32. Ke2 {[%emt 0:00:27]} Nb3 {[%emt 0:02:18]} 33. Rb1 {[%emt 0:02:12]} Bd5 {[%emt 0:07:53]} 34. Rg4 {[%emt 0:04:24]} (34. Rg6 $142 Bxe4 35. fxe4) 34... Bxe4 {[%emt 0:00:29]} 35. fxe4 {[%emt 0:00:30]} f3+ $2 {[%emt 0:03:36]} (35... Bg5 36. Rg1 Rd3) 36. Kxf3 {[%emt 0:00:42]} Rf7+ {[%emt 0:00:10]} 37. Kg2 {[%emt 0:01:02]} Rf2+ {[%emt 0:03:00]} 38. Kh1 {[%emt 0:00:35]} Rd1+ {[%emt 0:04:34]} 39. Rg1 {[%emt 0:00:07] [#]} Rxc1 {[%emt 0:00:37] &Nero is much more active. The white rooks are badly placed.} (39... Rxg1+ $142 $1 40. Kxg1 Rc2) 40. Rgxc1 {[%emt 0:00:00]} Nxc1 {[%emt 0:00:00]} 41. Rxc1 {[%emt 0:03:37]} Rxb2 $17 {[%emt 0:02:25][%mdl 4096] Endgame KRB-KRB} 42. Be6 {[%emt 0:11:30]} Bg5 {[%emt 0:12:11]} 43. Rd1 {[%emt 0:02:49]} Rc2 {[%emt 0:04:40]} 44. Bxc4 {[%emt 0:01:21]} Rxc3 {[%emt 0:03:07]} 45. Bb5 {[%emt 0:00:51]} Rc2 {[%emt 0:02:12]} 46. h3 {[%emt 0:03:24]} Bf4 {[%emt 0:00:55]} 47. Rd7 {[%emt 0:03:03]} Rh2+ {[%emt 0:05:48]} 48. Kg1 {[%emt 0:00:04]} Rxh3 {[%emt 0:00:16]} 49. Rxa7 {[%emt 0:01:00]} Re3 {[%emt 0:01:46]} 50. Bc6 {[%emt 0:03:04] [#]} ({Better is} 50. Kf2 $15) 50... h5 $1 {[%emt 0:00:26][%cal Bh6h5,Bh5h4][%mdl 32] ...h4 is the strong threat.} 51. a5 {[%emt 0:01:33]} (51. Bd7 $17 {was called for.}) 51... bxa5 $19 {[%emt 0:03:22]} 52. Rxa5 $2 {[%emt 0:00:54]} (52. Bd7) 52... h4 {[%emt 0:00:20]} 53. Ra1 {[%emt 0:03:33]} Kg7 {[%emt 0:00:51]} 54. Rf1 {[%emt 0:04:59]} Re2 $2 {[%emt 0:00:35]} (54... Kf6 $19 {and Black stays clearly on top. Hoping for ...h3.} 55. Kh1 h3) 55. Rf3 $17 {[%emt 0:01:26]} Kf6 {[%emt 0:00:25]} 56. Kf1 {[%emt 0:01:23]} Rd2 {[%emt 0:00:26]} 57. Bb7 {[%emt 0:01:19]} Rd4 {[%emt 0:00:38]} 58. Kg2 {[%emt 0:01:08]} (58. Bd5 $17 {keeps fighting.}) 58... Kg5 $19 {[%emt 0:00:26]} 59. Bc6 $2 {[%emt 0:00:55]} (59. Bd5 $19) 59... Rd2+ {[%emt 0:00:38]} (59... Kg4 $142 60. Rc3 h3+ 61. Rxh3 Rd2+ 62. Kf1 Kxh3 63. Bb5 Rh2 64. Ke1 Kg3 65. Be8 Kf3 66. Kd1 Rd2+ 67. Ke1 Ke3 68. Bh5 Rc2 69. Kf1 Rh2 70. Bg4 Rh4 71. Be2 Rh1+ 72. Kg2 Rh2+ 73. Kf1 Rxe2 74. Kg1 Kf3 75. Kf1 Rxe4 76. Kg1 Re1#) 60. Kg1 {[%emt 0:01:10]} Kg4 {[%emt 0:00:17]} 61. Rf2 {[%emt 0:00:06]} Be3 {[%emt 0:00:07] Weighted Error Value: White=0.88/Black=0.52} 0-1

[Event "Reykjavik Open 2022"]
[Site "Reykjavik"]
[Date "2022.04.08"]
[Round "4.52"]
[White "Ingvason, Johann"]
[Black "Jonsson, Kristjan Dagur"]
[Result "1-0"]
[ECO "A22"]
[WhiteElo "2183"]
[BlackElo "1797"]
[Annotator "RC"]
[PlyCount "71"]
[EventDate "2022.04.06"]
[EventCountry "ISL"]
[SourceTitle "playchess.com"]
[Source "ChessBase"]
[SourceQuality "1"]
[TimeControl "40/5400+30:1800+30"]

1. c4 {[%emt 0:00:34]} e5 {[%emt 0:03:19]} 2. g3 {[%emt 0:00:30]} Nf6 {[%emt 0:00:30]} 3. Bg2 {[%emt 0:00:30]} d5 {[%emt 0:00:30]} 4. cxd5 {[%emt 0:00:30]} Nxd5 {[%emt 0:00:30]} 5. Nc3 {[%emt 0:00:30]} Nb6 {[%emt 0:00:30]} 6. d3 {[%emt 0:00:30]} Be7 {[%emt 0:00:30]} 7. a4 {[%emt 0:00:30]} O-O {[%emt 0:00:30]} 8. a5 {[%emt 0:00:30]} N6d7 {[%emt 0:00:30]} 9. Nf3 {[%emt 0:00:30]} Nc6 {[%emt 0:00:30]} 10. O-O {[%emt 0:00:30]} Re8 {[%emt 0:00:30]} 11. Nd5 {[%emt 0:00:30]} Bf8 {[%emt 0:00:30]} 12. Bg5 {[%emt 0:00:30]} f6 {[%emt 0:00:30]} 13. Be3 {[%emt 0:00:30]} Bc5 {[%emt 0:00:30]} 14. b4 {[%emt 0:00:30]} Bxe3 {[%emt 0:00:30]} 15. fxe3 {[%emt 0:00:30]} Nf8 {[%emt 0:00:30]} 16. Nc3 {[%emt 0:00:30]} Ne6 {[%emt 0:00:30]} 17. Qb3 {[%emt 0:00:30]} Kh8 {[%emt 0:00:30]} 18. a6 {[%emt 0:00:30]} Rb8 {[%emt 0:00:30]} 19. Nd2 {[%emt 0:00:30]} Qd6 {[%emt 0:00:30]} 20. b5 {[%emt 0:00:30]} Nc5 {[%emt 0:00:30]} 21. Qc4 {[%emt 0:00:30]} Be6 {[%emt 0:00:30]} 22. Qh4 {[%emt 0:00:30]} Ne7 {[%emt 0:00:30]} 23. Nde4 {[%emt 0:00:30]} Nxe4 {[%emt 0:00:30]} 24. Nxe4 {[%emt 0:00:30]} Qb6 {[%emt 0:00:30]} 25. Nxf6 {[%emt 0:00:30]} gxf6 {[%emt 0:52:11]} 26. Qxf6+ {[%emt 1:14:09]} Kg8 {[%emt 0:00:14]} 27. Qg5+ {[%emt 0:03:02]} Ng6 {[%emt 0:00:23]} 28. Rf6 {[%emt 0:00:32]} Rf8 {[%emt 0:01:33]} 29. Rxg6+ {[%emt 0:05:24]} hxg6 {[%emt 0:00:10]} 30. Qxg6+ {[%emt 0:00:03]} Kh8 {[%emt 0:00:08]} 31. Qh6+ {[%emt 0:00:28]} Kg8 {[%emt 0:00:06]} 32. Qg5+ {[%emt 0:00:15]} Kf7 {[%emt 0:02:35]} 33. axb7 {[%emt 0:03:07]} Rg8 {[%emt 0:02:51]} 34. Rf1+ {[%emt 0:02:57]} Ke8 {[%emt 0:02:25]} 35. Bc6+ {[%emt 0:00:37]} Bd7 {[%emt 0:00:30]} 36. Qxe5+ {[%emt 0:00:30]} 1-0

[Event "Reykjavik Open 2022"]
[Site "Reykjavik"]
[Date "2022.04.08"]
[Round "4.53"]
[White "Smith, Lynda"]
[Black "Domalchuk-Jonasson, Aleksandr"]
[Result "0-1"]
[ECO "A03"]
[WhiteElo "1778"]
[BlackElo "2162"]
[Annotator "RC"]
[PlyCount "74"]
[EventDate "2022.04.06"]
[EventCountry "ISL"]
[SourceTitle "playchess.com"]
[Source "ChessBase"]
[SourceQuality "1"]
[TimeControl "40/5400+30:1800+30"]

1. f4 {[%emt 0:03:14]} d5 2. Nf3 {[%emt 0:00:30]} Nf6 3. g3 {[%emt 0:00:30]} g6 4. Bg2 {[%emt 0:00:30]} Bg7 5. d3 {[%emt 0:00:30]} O-O 6. O-O {[%emt 0:00:30]} c5 7. c3 {[%emt 0:00:30]} Nc6 8. Nbd2 {[%emt 0:00:30]} b6 {[%emt 0:16:03]} 9. Qc2 {[%emt 0:00:30]} a5 {[%emt 0:00:30]} 10. e4 {[%emt 0:00:30]} dxe4 {[%emt 0:00:30]} 11. dxe4 {[%emt 0:00:30]} Ba6 {[%emt 0:00:30]} 12. Re1 {[%emt 0:00:30]} e5 {[%emt 0:00:30]} 13. Bf1 {[%emt 0:00:30]} exf4 {[%emt 0:00:30]} 14. Bxa6 {[%emt 0:00:30]} Rxa6 {[%emt 0:00:30]} 15. gxf4 {[%emt 0:00:30]} Nh5 {[%emt 0:00:30]} 16. Nf1 {[%emt 0:00:30]} Qc7 {[%emt 0:00:30]} 17. Qe2 {[%emt 0:00:30]} Raa8 {[%emt 0:00:30]} 18. e5 {[%emt 0:00:30]} Rad8 {[%emt 0:00:30]} 19. Ng3 {[%emt 0:00:30]} Nxg3 {[%emt 0:00:30]} 20. hxg3 {[%emt 0:00:30]} Qd7 {[%emt 0:00:30]} 21. Be3 {[%emt 0:00:30]} f6 {[%emt 0:00:30]} 22. Qc4+ {[%emt 0:00:30]} Qd5 {[%emt 0:00:30]} 23. Qxd5+ {[%emt 0:00:30]} Rxd5 {[%emt 0:00:30]} 24. exf6 {[%emt 0:00:30]} Bxf6 {[%emt 0:00:30]} 25. Rad1 {[%emt 0:00:30]} Rfd8 {[%emt 0:00:30]} 26. Rxd5 {[%emt 0:00:30]} Rxd5 {[%emt 0:00:30]} 27. Kf2 {[%emt 0:00:30]} a4 {[%emt 0:00:30]} 28. Bc1 {[%emt 0:00:30]} Kf7 {[%emt 0:00:30]} 29. g4 {[%emt 0:00:30]} a3 {[%emt 0:00:30]} 30. Ke2 {[%emt 0:00:30]} Na5 {[%emt 0:00:30]} 31. Nd2 {[%emt 0:00:30]} axb2 {[%emt 0:00:30]} 32. Bxb2 {[%emt 0:00:30]} h5 {[%emt 0:00:30]} 33. g5 {[%emt 0:00:30]} Bg7 {[%emt 0:00:30]} 34. Rb1 {[%emt 0:00:30]} Ke6 {[%emt 0:00:30]} 35. Ba1 {[%emt 0:00:30]} Kf5 {[%emt 0:00:30]} 36. Rxb6 {[%emt 0:00:30]} Rxd2+ {[%emt 0:00:30]} 37. Kxd2 {[%emt 0:00:30]} Nc4+ {[%emt 0:00:30]} 0-1

[Event "Reykjavik Open 2022"]
[Site "Reykjavik"]
[Date "2022.04.08"]
[Round "4.54"]
[White "Decosse, Jean-Fabien"]
[Black "Rachlin, Paul"]
[Result "1-0"]
[ECO "D45"]
[WhiteElo "2156"]
[BlackElo "1820"]
[Annotator "RC"]
[PlyCount "71"]
[EventDate "2022.04.06"]
[EventCountry "ISL"]
[SourceTitle "playchess.com"]
[Source "ChessBase"]
[SourceQuality "1"]
[TimeControl "40/5400+30:1800+30"]

1. d4 {[%emt 0:00:03]} d5 {[%emt 0:00:13]} 2. c4 {[%emt 0:00:04]} c6 {[%emt 0:00:10]} 3. Nf3 {[%emt 0:00:17]} Nf6 {[%emt 0:00:12]} 4. e3 e6 5. Nc3 {[%emt 0:01:32]} Nbd7 {[%emt 0:01:11]} 6. b3 {[%emt 0:01:23]} Bd6 {[%emt 0:00:49]} 7. Bd3 {[%emt 0:00:11]} Qe7 8. Bb2 {[%emt 0:01:54]} b6 {[%emt 0:06:05]} 9. e4 {[%emt 0:04:11]} dxe4 {[%emt 0:00:39]} 10. Nxe4 {[%emt 0:00:30]} Nxe4 {[%emt 0:00:30]} 11. Bxe4 {[%emt 0:00:30]} Bb4+ {[%emt 0:00:30]} 12. Nd2 {[%emt 0:00:30]} Bb7 {[%emt 0:00:30]} 13. O-O {[%emt 0:00:30]} O-O {[%emt 0:00:30]} 14. a3 {[%emt 0:02:14]} Bd6 {[%emt 0:14:05]} 15. b4 {[%emt 0:00:28]} Nf6 {[%emt 0:03:34]} 16. Bf3 {[%emt 0:00:30]} Qc7 {[%emt 0:00:30]} 17. g3 {[%emt 0:00:30]} Rad8 {[%emt 0:14:51]} 18. Qe2 {[%emt 0:08:54]} Rfe8 {[%emt 0:00:50]} 19. c5 {[%emt 0:01:05]} Bf8 {[%emt 0:02:20]} 20. Rfd1 {[%emt 0:01:52]} b5 {[%emt 0:05:56]} 21. Nb3 {[%emt 0:03:23]} Nd5 {[%emt 0:03:46]} 22. Na5 {[%emt 0:01:32]} Bc8 {[%emt 0:01:11]} 23. Rd3 {[%emt 0:02:15]} f5 {[%emt 0:09:15]} 24. Re1 {[%emt 0:00:39]} g6 {[%emt 0:04:11]} 25. Bc1 {[%emt 0:02:15]} Bg7 {[%emt 0:09:26]} 26. Bg5 {[%emt 0:01:12]} Rd7 {[%emt 0:00:53]} 27. Qd2 {[%emt 0:02:22]} Kf7 {[%emt 0:06:53]} 28. Rd1 {[%emt 0:05:28]} Bb7 {[%emt 0:03:52]} 29. Bf4 {[%emt 0:06:01]} e5 {[%emt 0:02:18]} 30. dxe5 {[%emt 0:08:20]} Bxe5 {[%emt 0:00:31]} 31. Bxd5+ {[%emt 0:00:09]} cxd5 {[%emt 0:02:54]} 32. Bxe5 {[%emt 0:07:22]} Rxe5 {[%emt 0:00:02]} 33. c6 {[%emt 0:01:01]} Bxc6 {[%emt 0:00:38]} 34. Rc3 {[%emt 0:01:00]} Rd6 {[%emt 0:00:25]} 35. Rdc1 {[%emt 0:00:05]} Ree6 {[%emt 0:03:28]} 36. Nxc6 {[%emt 0:00:08]} 1-0